[Event "44th Chess Olympiad Open 2022"]
[Site "Chennai"]
[Date "2022.08.06"]
[Round "8.11"]
[White "Henriquez Villagra, Cristobal"]
[Black "Deac, Bogdan-Daniel"]
[Result "1/2-1/2"]
[WhiteElo "2620"]
[BlackElo "2692"]
[Annotator "TA"]
[PlyCount "140"]
[EventDate "2022.??.??"]
[TimeControl "60"]

{[%evp 9,140,0,15,3,30,28,31,35,19,10,29,8,16,17,18,0,4,12,21,13,11,17,63,54,
27,24,28,27,31,37,38,29,36,-55,-54,-54,-54,-47,-48,-54,-54,-60,-56,-43,-56,-58,
-46,-62,-57,-61,-52,-54,-39,-40,-50,-52,-42,-45,-32,-32,-32,-38,-32,-39,0,0,0,
0,0,-8,-8,-8,-8,-8,0,-8,-8,-8,-8,-8,-8,-8,-8,-8,-8,-8,-8,-8,-8,-21,0,0,0,0,0,0,
0,0,0,0,0,0,0,0,0,0,0,0,0,0,0,0,0,0,0,0,0,0,0,0,0,0,0,0,0,0,0,0,0,0,0,0,0]} 1.
d4 {[%emt 0:00:04]} Nf6 {[%emt 0:00:05]} 2. Nf3 {[%emt 0:00:04]} d5 {[%emt 0:
00:00]} 3. Bf4 {[%emt 0:00:08]} c5 {[%emt 0:02:23]} 4. e3 {[%emt 0:00:21]} Nc6
{[%emt 0:00:08]} 5. Nbd2 {[%emt 0:00:10]} cxd4 {[%emt 0:02:45]} 6. exd4 {
[%emt 0:00:08] D02:1 d4 d5 2 Nf3 sidelines, including 2...Nf6 3 g3 and 2...
Nf6 3 Bf4.} Nh5 {[%emt 0:00:08]} 7. Be3 {[%emt 0:07:26]} g6 {[%emt 0:00:44] [#]
} 8. h3 $146 {[%emt 0:16:21] White is slightly better.} ({Predecessor:} 8. Be2
Bg7 9. O-O O-O 10. c3 Bg4 11. Re1 e6 12. h3 Bxf3 13. Nxf3 Qc7 14. Qd2 {½-½ 
(52) Sjugirov,S (2663)-Volkov,S (2534) Cheliabinsk 2021}) 8... Qc7 {[%emt 0:00:
00]} 9. c4 {[%emt 0:06:52]} Be6 {[%emt 0:07:35]} 10. Ng5 {[%emt 0:21:06]} Bg7 {
[%emt 0:01:53]} 11. Nxe6 {[%emt 0:00:15]} fxe6 {[%emt 0:00:02]} 12. Nb3 {
[%emt 0:01:16]} O-O {[%emt 0:04:21]} 13. Rc1 {[%emt 0:00:13][%cal Ya1c1,Yc1c4,
Yc4c5]} Qd6 {[%emt 0:24:37]} 14. Be2 {[%emt 0:05:06]} Nf4 {[%emt 0:00:00]} 15.
O-O {[%emt 0:01:05]} Rad8 {[%emt 0:05:46]} (15... Nxe2+ $11 {is more
appropriate.} 16. Qxe2 Rf5) 16. Bf3 $14 {[%emt 0:02:55]} dxc4 {[%emt 0:17:15]}
17. Rxc4 {[%emt 0:01:46]} Nd5 {[%emt 0:01:27]} 18. Nc5 {[%emt 0:08:40]} b5 {
[%emt 0:00:57]} 19. Ne4 {[%emt 0:01:58]} Qc7 {[%emt 0:02:17]} 20. Rc5 {[%emt 0:
00:00]} Qb6 $1 {[%emt 0:00:12]} 21. Kh1 {[%emt 0:00:53]} ({Better is} 21. Qb3
$14 a6 22. Rd1) 21... Nxe3 $15 {[%emt 0:05:27]} 22. fxe3 {[%emt 0:00:08][%cal
Yc5c6] [#]} Nxd4 {[%emt 0:00:03]} 23. exd4 {[%emt 0:11:34]} Rxd4 {[%emt 0:00:
00][%cal Yd8d4,Yd4e4,Ye4e3,Ye3a3]} 24. Qb3 {[%emt 0:04:26]} Rxe4 $1 {[%emt 0:
01:56] Pin} 25. Rxb5 {[%emt 0:00:32]} Qe3 {[%emt 0:04:01]} 26. Qxe3 {[%emt 0:
00:13]} Rxe3 {[%emt 0:00:07]} 27. Rb7 {[%emt 0:00:03]} a5 {[%emt 0:01:06]} 28.
Rd1 {[%emt 0:01:46]} Bf6 {[%emt 0:01:01]} 29. b4 {[%emt 0:00:00]} axb4 {
[%emt 0:01:56]} 30. Rxb4 {[%emt 0:00:03]} Ra3 {[%emt 0:01:27]} 31. Bg4 {
[%emt 0:00:03]} Kf7 {[%emt 0:02:04]} 32. Re4 {[%emt 0:00:15]} e5 {[%emt 0:00:
19]} 33. Be2 {[%emt 0:00:12]} Rb8 {[%emt 0:00:50]} 34. Bc4+ {[%emt 0:00:04]}
Kg7 {[%emt 0:00:07]} 35. Bb3 {[%emt 0:00:15]} h5 {[%emt 0:00:00]} 36. h4 {
[%emt 0:00:58]} Raxb3 {[%emt 0:02:20]} 37. axb3 {[%emt 0:00:05] The position
is equal.} Rxb3 {[%emt 0:00:05] Endgame KRR-KRB} 38. Rf1 {[%emt 0:01:05]} Rd3 {
[%emt 0:00:20]} 39. Kh2 {[%emt 0:01:00]} Rd4 {[%emt 0:00:21]} 40. Rxd4 {
[%emt 0:03:00]} exd4 $11 {[%emt 0:00:03] KR-KB} 41. Kg3 {[%emt 0:15:27]} e5 {
[%emt 0:06:08]} 42. Re1 {[%emt 0:05:25]} Kf7 {[%emt 0:00:00]} 43. Kf3 {[%emt 0:
00:28]} Ke6 {[%emt 0:00:13]} 44. Ke4 {[%emt 0:01:28]} Bxh4 {[%emt 0:00:42]} 45.
Ra1 {[%emt 0:00:05]} Bg3 {[%emt 0:00:27]} 46. Ra3 {[%emt 0:01:10]} h4 {[%emt 0:
00:59]} 47. Ra6+ {[%emt 0:01:49]} Kf7 {[%emt 0:00:00]} 48. Kf3 {[%emt 0:00:09]}
Bf4 {[%emt 0:07:38]} 49. Ke4 {[%emt 0:03:58]} g5 {[%emt 0:00:56]} 50. Kf5 {
[%emt 0:00:14]} Ke7 {[%emt 0:01:55] [#] ...d3 is the strong threat.} 51. Ke4 {
[%emt 0:00:19]} g4 {[%emt 0:02:11] And now ...h3 would win.} 52. Rg6 {[%emt 0:
00:58]} h3 {[%emt 0:01:26] Hoping for ...h2.} 53. Rxg4 {[%emt 0:00:17]} h2 {
[%emt 0:03:06]} 54. Rh4 {[%emt 0:00:03]} Bg3 {[%emt 0:01:40]} 55. Rh6 {[%emt 0:
00:52]} Kf7 {[%emt 0:00:48]} 56. Rh3 {[%emt 0:00:00]} Kf6 {[%emt 0:01:05]} 57.
Rh5 {[%emt 0:00:13]} Bf4 {[%emt 0:01:29]} 58. g4 {[%emt 0:00:37]} Ke6 {[%emt 0:
01:48]} 59. Rh3 {[%emt 0:00:16]} Kd6 {[%emt 0:00:00]} (59... Kf6 $5 60. Rh5 Kf7
$11) 60. Rh8 {[%emt 0:00:24]} Ke7 {[%emt 0:00:00]} 61. Rh3 {[%emt 0:00:31]} Kf7
{[%emt 0:00:09]} (61... Kf6 $5 62. Rh5 Bg3 $11) 62. Rh5 {[%emt 0:00:34]} Kf6 {
[%emt 0:00:04]} (62... Kg6 $5) 63. Kd3 {[%emt 0:00:06]} Kf7 {[%emt 0:01:58]}
64. Ke4 {[%emt 0:00:07]} Kg6 {[%emt 0:00:00]} 65. Kd3 $1 {[%emt 0:00:07]} Kf6 {
[%emt 0:00:06]} 66. Ke4 {[%emt 0:00:04]} Ke6 {[%emt 0:00:05]} (66... Kg6 $5)
67. Rh3 {[%emt 0:00:10]} Kd7 {[%emt 0:00:00]} (67... Kf6 $5 68. Rh5 $11) 68.
Rh8 {[%emt 0:00:11]} Kd6 {[%emt 0:00:05]} 69. Rh7 {[%emt 0:02:22]} Ke6 {
[%emt 0:00:27]} 70. Rh3 {[%emt 0:00:14]} Kf6 {[%emt 0:00:11] Weighted Error
Value: White=0.05 (flawless) /Black=0.04 (flawless)} 1/2-1/2

[Event "44th Chess Olympiad Open 2022"]
[Site "Chennai"]
[Date "2022.08.06"]
[Round "8.11"]
[White "Parligras, Mircea-Emilian"]
[Black "Morovic Fernandez, Ivan"]
[Result "1-0"]
[WhiteElo "2576"]
[BlackElo "2489"]
[Annotator "TA"]
[PlyCount "75"]
[EventDate "2022.??.??"]
[TimeControl "60"]

{[%evp 15,75,26,33,28,29,23,12,16,19,10,21,26,25,0,14,-19,-7,-50,-48,-35,-12,
-29,-47,-28,0,0,0,-44,-47,-33,-35,-73,0,2,77,75,455,302,562,569,553,549,527,
511,495,486,718,489,890,804,2545,2473,2152,1989,29985,29986,29986,29987,29989,
29990,29993,29994]} 1. d4 {[%emt 0:00:04]} d5 {[%emt 0:00:16]} 2. c4 {[%emt 0:
00:00]} c6 {[%emt 0:00:10]} 3. Nf3 {[%emt 0:00:11]} Nf6 {[%emt 0:00:12]} 4. e3
{[%emt 0:01:13]} Bg4 {[%emt 0:01:04]} 5. h3 {[%emt 0:00:00]} Bxf3 {[%emt 0:00:
00]} 6. Qxf3 {[%emt 0:00:00]} e6 {[%emt 0:00:05]} 7. Nc3 {[%emt 0:00:03]} Bb4 {
[%emt 0:02:26]} 8. Bd3 {[%emt 0:02:11]} Nbd7 {[%emt 0:02:30][%cal Yb8d7,Yd7b6,
Yb6c4]} 9. O-O {[%emt 0:01:23] D11: Slav Defence: 3 Nf3 sidelines and 3...Nf6
4 e3 Bg4.} O-O {[%emt 0:00:39]} 10. a3 {[%emt 0:00:57] 10.Rd1 gains popularity.
} Bxc3 {[%emt 0:09:27]} 11. bxc3 {[%emt 0:00:05] The position is equal.} e5 {
[%emt 0:00:02] Strongly threatening ...e4.} 12. Qd1 {[%emt 0:02:18]} e4 {
[%emt 0:05:13]} (12... Nb6 {seems wilder.} 13. c5 e4 14. cxb6 exd3 15. bxa7 Qc7
) 13. Be2 {[%emt 0:00:10]} Nb6 $1 {[%emt 0:06:38]} 14. c5 {[%emt 0:00:00]} Nc4
{[%emt 0:01:20] [#]} 15. Rb1 $146 {[%emt 0:15:23]} ({Predecessor:} 15. Qb3 b5
16. cxb6 Na5 17. Qb4 axb6 18. a4 Qc7 19. Rb1 Rfb8 20. Ba3 Nc4 21. Bxc4 dxc4 22.
Qxc4 {½-½ (58) Vitiugov,N (2738)-Navara,D (2727) Wroclaw 2014}) 15... b5 {
[%emt 0:07:23]} 16. cxb6 {[%emt 0:01:57]} axb6 {[%emt 0:01:18]} 17. a4 {
[%emt 0:00:11] Against b5} Qc7 {[%emt 0:12:27]} 18. Bxc4 {[%emt 0:13:50]} dxc4
{[%emt 0:00:52]} 19. Rb4 {[%emt 0:00:06]} c5 {[%emt 0:10:20]} 20. Rxc4 {
[%emt 0:04:24]} Qc6 {[%emt 0:00:34]} 21. dxc5 {[%emt 0:10:32]} bxc5 {[%emt 0:
00:00]} 22. Ba3 {[%emt 0:09:24]} Nd7 {[%emt 0:01:38]} 23. f3 {[%emt 0:01:05] 
[#]} exf3 {[%emt 0:23:03]} (23... Rfd8 $1 $17 {Hoping for ...Ne5.} 24. Qc2 (24.
fxe4 $2 Qa6 $19) (24. Rxe4 $2 Nf6 $17) 24... exf3) 24. Qxf3 $11 {[%emt 0:00:14]
} Qb6 {[%emt 0:01:44]} (24... Qxf3 $11 25. gxf3 Nb6 26. Rxc5 Nxa4) 25. Qd5 $36
{[%emt 0:03:36] White is really pushing.} Qb3 $2 {[%emt 0:02:00] A mistake
that costs the game.} (25... Qe6 $16 {is a better chance.} 26. Qxe6 fxe6) 26.
Bxc5 {[%emt 0:00:36]} Nxc5 {[%emt 0:01:24] [#]} (26... Rac8 27. Bxf8 Qxc4 28.
Qxc4 (28. Qxd7 Rxf8 29. Qd4 Rc8 $18) 28... Rxc4) 27. Rxf7 $3 $18 {[%emt 0:00:
54] Deflection} Rxf7 {[%emt 0:03:59]} 28. Qxa8+ {[%emt 0:00:06]} Rf8 {[%emt 0:
00:02]} 29. Qd5+ {[%emt 0:00:11]} Kh8 {[%emt 0:01:10]} 30. Qxc5 {[%emt 0:00:55]
[%cal Rc5f8] Endgame KQR-KQR} Qb8 {[%emt 0:04:06]} (30... Qb1+ $142 31. Kh2
Qb8+ 32. Qc7 Qxc7+ 33. Rxc7 Kg8) 31. Rf4 {[%emt 0:02:06]} Rd8 {[%emt 0:00:37]}
(31... Rc8 $142 32. Qb4 h6 33. Qxb8 Rxb8) 32. a5 {[%emt 0:01:02][%cal Ya4a5,
Ya5a6,Ya6a7] aiming for a6.} h6 {[%emt 0:00:31]} 33. a6 {[%emt 0:01:49] a7 is
the strong threat.} Rd1+ {[%emt 0:00:43]} 34. Kh2 {[%emt 0:00:18] White
threatens a7 and mate.} Qb1 {[%emt 0:00:23]} 35. a7 {[%emt 0:02:59] White
mates.} Rh1+ {[%emt 0:01:28]} 36. Kg3 {[%emt 0:00:05]} Qg6+ {[%emt 0:00:22]}
37. Rg4 {[%emt 0:00:11]} Qe8 {[%emt 0:00:39]} 38. Qd4 {[%emt 0:00:18] Weighted
Error Value: White=0.23 (precise) /Black=0.78} 1-0

[Event "44th Chess Olympiad Open 2022"]
[Site "Chennai"]
[Date "2022.08.06"]
[Round "8.11"]
[White "Salinas Herrera, Pablo"]
[Black "Gavrilescu, David"]
[Result "1-0"]
[WhiteElo "2526"]
[BlackElo "2525"]
[Annotator "TA"]
[PlyCount "87"]
[EventDate "2022.??.??"]
[TimeControl "60"]

{[%evp 14,87,0,7,8,11,4,18,12,12,17,12,16,6,16,9,37,37,39,30,41,44,52,44,44,37,
75,55,75,83,71,0,0,0,0,0,0,0,0,0,0,0,0,0,0,0,0,0,45,47,84,75,150,127,225,243,
497,483,778,763,820,779,659,678,670,467,1151,1122,1062,990,1916,1516,5591,5583,
5014,4132]} 1. d4 {[%emt 0:00:05]} d5 {[%emt 0:00:23]} 2. c4 {[%emt 0:00:06]}
e6 {[%emt 0:00:22]} 3. Nc3 {[%emt 0:00:10]} Nf6 {[%emt 0:01:51]} 4. Nf3 {
[%emt 0:00:25]} Bb4 {[%emt 0:04:51]} 5. e3 {[%emt 0:02:22]} O-O {[%emt 0:00:51]
} 6. Bd2 {[%emt 0:00:07]} c5 {[%emt 0:01:39]} 7. a3 {[%emt 0:08:52]} Bxc3 {
[%emt 0:00:54]} 8. Bxc3 {[%emt 0:00:05]} cxd4 {[%emt 0:00:15] E51:
Nimzo-Indian: Rubinstein: 4...0-0 5 Nf3 d5.} 9. Nxd4 $1 {[%emt 0:01:46] 9.Nxd4
is better than 9.Bxd4.} Re8 {[%emt 0:00:19]} 10. Qc2 {[%emt 0:07:43]} e5 {
[%emt 0:09:21] The position is equal.} 11. Nf3 {[%emt 0:00:12] [#]} Nbd7 $146 {
[%emt 0:04:37]} ({Predecessor:} 11... e4 12. Nd4 Nbd7 13. O-O-O Ne5 14. f4 Nd3+
15. Bxd3 exd3 16. Qxd3 Ne4 17. Nf3 Nf2 {½-½ (24) Sargissian,G (2694)
-Sjugirov,S (2696) Sochi 2022}) 12. cxd5 {[%emt 0:24:56]} Nxd5 {[%emt 0:01:55]}
13. Rd1 {[%emt 0:00:09]} Nxc3 {[%emt 0:07:06]} 14. Qxc3 {[%emt 0:01:00][%cal
Yf3e5]} Qe7 {[%emt 0:04:49]} (14... Qb6 {feels hotter.} 15. Bc4 e4 16. Ng5 Ne5)
15. Bb5 {[%emt 0:14:37]} e4 {[%emt 0:05:53]} 16. Nd4 {[%emt 0:00:15]} Qe5 {
[%emt 0:07:06]} 17. O-O {[%emt 0:04:11]} a6 {[%emt 0:02:22]} 18. Bxd7 {[%emt 0:
00:00]} Bxd7 {[%emt 0:00:03]} 19. Qb4 {[%emt 0:00:56]} a5 {[%emt 0:24:42]} 20.
Qb6 {[%emt 0:01:59]} Ra6 {[%emt 0:03:14]} 21. Qxb7 {[%emt 0:04:55]} Rh6 {
[%emt 0:00:24][%csl Gh6][%cal Re5h2]} 22. h3 {[%emt 0:05:37]} (22. g3 $1 $16
Bc8 23. Qb5) 22... Bxh3 $11 {[%emt 0:01:31]} 23. f4 {[%emt 0:00:28]} exf3 {
[%emt 0:08:12]} 24. Rxf3 $40 {[%emt 0:00:04] White mounts an attack.} Qh2+ $1 {
[%emt 0:00:43]} 25. Kxh2 {[%emt 0:00:04] Really sharp!} Bc8+ {[%emt 0:00:00]}
26. Kg1 {[%emt 0:02:05]} Bxb7 {[%emt 0:00:05]} 27. Rf5 {[%emt 0:00:20]} Rg6 {
[%emt 0:06:31]} (27... Rxe3 $2 28. Rb5 Rd6 29. Rxb7 $18) 28. Rd2 {[%emt 0:00:
00]} h6 {[%emt 0:02:12]} ({Much less strong is} 28... Rxe3 29. Rb5 $16) 29.
Rxa5 {[%emt 0:01:16]} Rxe3 {[%emt 0:00:10]} 30. Ra7 {[%emt 0:00:09]} Rb6 {
[%emt 0:02:07]} (30... Be4 $5 {[%cal Re3g3]}) 31. b4 {[%emt 0:00:34][%cal
Yb2b4,Yb4b5,Yb5b6,Yb6b7]} Re1+ {[%emt 0:00:32] [#]} 32. Kh2 $1 {[%emt 0:00:10]}
Bc6 {[%emt 0:00:53] Against b5} (32... Be4 $142) 33. a4 {[%emt 0:01:53][%cal
Ya3a4,Ya4a5,Ya5a6] aiming for a5.} Be8 {[%emt 0:00:00]} (33... Bd5 $16) 34. b5
$18 {[%emt 0:01:04]} Re4 $2 {[%emt 0:00:39]} (34... Rb8 {was necessary.} 35. a5
Bxb5) 35. a5 {[%emt 0:01:13] White is clearly winning.} Rb8 {[%emt 0:00:32] [#]
} (35... Rxb5 $142 36. Nxb5 Bxb5) 36. b6 $1 {[%emt 0:00:10]} Kh7 {[%emt 0:00:
22]} 37. b7 {[%emt 0:00:11] Threatens to win with a6.} Bd7 {[%emt 0:00:36]} 38.
a6 {[%emt 0:00:07] Hoping for Ra8.} Ree8 {[%emt 0:00:05]} 39. Re2 {[%emt 0:04:
38]} Red8 {[%emt 0:00:40]} (39... Rxe2 $142 40. Ra8 Ree8 41. Rxb8 Rxb8) 40. Re7
{[%emt 0:00:26]} Ba4 {[%emt 0:00:00] [#]} 41. Rxf7 $1 {[%emt 0:30:29] And now
Ne6 would win.} Kg6 {[%emt 0:00:00] [#]} (41... Rg8 42. Re7) 42. Ne6 $1 {
[%emt 0:00:00][%csl Yd8,Yg7]} Rh8 {[%emt 0:03:26] [#]} (42... Re8 43. Rxg7+)
43. Rf8 $1 {[%emt 0:00:00] Intending Rxh8 and mate.} Bc6 {[%emt 0:02:20]} 44.
Ra8 {[%emt 0:00:00] Weighted Error Value: White=0.15 (very precise) /Black=0.
24 (precise)} 1-0

[Event "44th Chess Olympiad Open 2022"]
[Site "Chennai"]
[Date "2022.08.06"]
[Round "8.11"]
[White "Jianu, Vlad-Cristian"]
[Black "Lopez Silva, Hugo"]
[Result "1/2-1/2"]
[WhiteElo "2511"]
[BlackElo "2403"]
[Annotator "TA"]
[PlyCount "80"]
[EventDate "2022.??.??"]
[TimeControl "60"]

{[%evp 18,80,0,0,49,42,58,33,32,18,37,21,87,68,55,33,22,27,20,15,15,11,11,11,
11,6,6,9,31,28,31,31,31,29,74,74,74,74,74,74,74,66,74,43,74,43,74,66,74,74,74,
63,63,63,63,63,63,63,63,48,55,55,55,48,80]} 1. d4 {[%emt 0:00:03]} Nf6 {
[%emt 0:00:18]} 2. Nf3 {[%emt 0:00:11]} g6 {[%emt 0:01:58]} 3. g3 {[%emt 0:00:
00]} Bg7 {[%emt 0:00:59]} 4. Bg2 {[%emt 0:00:05]} O-O {[%emt 0:01:27]} 5. O-O {
[%emt 0:00:05]} d5 {[%emt 0:01:13]} 6. c4 {[%emt 0:00:37]} c6 {[%emt 0:00:07]}
7. b3 {[%emt 0:00:46]} dxc4 {[%emt 0:05:57]} 8. bxc4 {[%emt 0:00:06]} c5 {
[%emt 0:00:04]} 9. Bb2 {[%emt 0:00:55]} cxd4 {[%emt 0:00:10]} 10. Nxd4 {
[%emt 0:00:33]} Na6 {[%emt 0:01:37] A49:1 d4 Nf6 2 Nf3 g6 3 g3: Anti-King's
Indian systems.} (10... Qc7 $11) 11. Nc3 $14 {[%emt 0:08:51]} Nd7 {[%emt 0:00:
00] [#]} 12. Rc1 $146 {[%emt 0:08:53]} ({Predecessor:} 12. e3 Ne5 13. Qb3 Nc5
14. Qc2 Bd7 15. Ncb5 a6 16. Na3 Rc8 17. Rab1 Qc7 18. h3 {0-1 (53) Cordova,E 
(2610)-Cori,J (2600) Lima 2016}) 12... Ndc5 {[%emt 0:35:57]} 13. Nb3 {[%emt 0:
00:00]} Be6 {[%emt 0:01:55]} 14. Ba3 {[%emt 0:04:08]} Qb6 {[%emt 0:17:10]} (
14... Rc8 $11) 15. Nxc5 {[%emt 0:28:14]} (15. Nd5 {looks sharper.} Qd6 16. e4
Rae8 17. f4) 15... Nxc5 {[%emt 0:00:15]} 16. Na4 {[%emt 0:00:25]} Nxa4 {
[%emt 0:00:23]} 17. Qxa4 {[%emt 0:00:05]} Qc7 {[%emt 0:12:21]} 18. Qb4 {
[%emt 0:01:54]} Rac8 $1 {[%emt 0:00:36]} 19. Qxe7 {[%emt 0:06:21]} Qxe7 {
[%emt 0:00:19]} 20. Bxe7 {[%emt 0:00:05][%cal Ya3e7,Ye7g5,Yg5e3]} Rfe8 {
[%emt 0:00:02]} 21. Bg5 {[%emt 0:01:13]} Rxc4 {[%emt 0:00:47]} 22. Bxb7 {
[%emt 0:00:18]} Rxc1 {[%emt 0:01:28]} 23. Rxc1 {[%emt 0:00:06]} Bxa2 {[%emt 0:
00:00]} 24. Be3 {[%emt 0:02:34]} h5 {[%emt 0:04:17]} 25. Rc5 {[%emt 0:10:49]}
Rb8 {[%emt 0:04:47]} 26. Ra5 {[%emt 0:01:11][%csl Ya2,Ya7] White is more
active.} Rxb7 {[%emt 0:03:54]} 27. Rxa2 {[%emt 0:00:12]} Rb2 {[%emt 0:00:26]}
28. Rxb2 {[%emt 0:00:29]} ({Of course not} 28. Rxa7 Rxe2 29. Kg2 Rc2 $11) 28...
Bxb2 {[%emt 0:00:01]} 29. Bxa7 $16 {[%emt 0:01:00] Endgame KB-KB} f5 {[%emt 0:
00:54]} 30. Kg2 {[%emt 0:00:51]} Kf7 {[%emt 0:00:15]} 31. Kf3 {[%emt 0:00:42]}
Be5 {[%emt 0:00:21]} 32. h3 {[%emt 0:00:10][%cal Yh2h3,Yh3g4]} Ke6 {[%emt 0:00:
17]} 33. Be3 {[%emt 0:01:47]} Kd5 {[%emt 0:01:22]} 34. g4 {[%emt 0:00:38]}
hxg4+ {[%emt 0:00:07] White is slightly better.} 35. hxg4 {[%emt 0:00:04]} Ke6
{[%emt 0:00:38]} 36. Bf4 {[%emt 0:00:07]} Bd4 {[%emt 0:00:13]} 37. Kg3 {
[%emt 0:00:39]} Bc5 {[%emt 0:00:24]} 38. e3 {[%emt 0:00:00]} Be7 {[%emt 0:00:
36]} 39. Bc7 {[%emt 0:01:13]} Bg5 {[%emt 0:00:19]} 40. Kf3 {[%emt 0:00:47]} Bh4
{[%emt 0:00:16] Weighted Error Value: White=0.06 (flawless) /Black=0.13 (very
precise)} 1/2-1/2

[Event "44th Chess Olympiad Open 2022"]
[Site "Chennai"]
[Date "2022.08.06"]
[Round "8.12"]
[White "Can, Emre"]
[Black "Noritsyn, Nikolay"]
[Result "1-0"]
[WhiteElo "2606"]
[BlackElo "2482"]
[Annotator "TA"]
[PlyCount "129"]
[EventDate "2022.??.??"]
[TimeControl "60"]

{[%evp 15,129,39,46,48,47,38,56,19,64,71,61,62,63,54,76,53,107,89,127,122,126,
129,159,161,209,204,203,175,186,185,185,191,185,168,192,156,261,266,366,360,
409,306,300,300,317,301,461,387,353,125,131,142,119,76,67,52,88,73,110,93,106,
94,95,73,66,67,167,129,119,120,132,120,115,89,177,196,291,291,404,405,499,499,
499,499,747,654,859,829,1317,1229,29966,29967,29968,29969,29968,29968,29966,
29967,29968,11345,29972,12793,29982,29983,29988,29989,29990,29986,29991,29987,
29996,29997,29997,29975,29998,29999]} 1. d4 {[%emt 0:00:17]} d5 {[%emt 0:00:16]
} 2. c4 {[%emt 0:00:28]} dxc4 {[%emt 0:00:11]} 3. Nf3 {[%emt 0:00:46]} a6 {
[%emt 0:01:07]} 4. e3 {[%emt 0:02:45]} Bg4 {[%emt 0:00:22]} 5. Bxc4 {[%emt 0:
00:00]} e6 {[%emt 0:00:12]} 6. h3 {[%emt 0:03:49]} Bh5 {[%emt 0:00:12]} 7. Nc3
{[%emt 0:01:39]} Nc6 {[%emt 0:00:43]} 8. O-O {[%emt 0:00:46]} Nf6 {[%emt 0:00:
00]} 9. Re1 {[%emt 0:00:19] seems to push 9.Be2 aside. D22: Queen's Gambit
Accepted: 3 Nf3 a6 4 e3.} Be7 {[%emt 0:00:24]} 10. a3 {[%emt 0:11:25]} O-O {
[%emt 0:00:32]} 11. Bf1 {[%emt 0:00:29] [#] White is slightly better.} b5 $146
{[%emt 0:00:40][%cal Yb7b5,Yb5b4]} ({Predecessor:} 11... Nd5 12. g4 Bg6 13. e4
Nxc3 14. bxc3 b5 15. Bb2 f5 16. gxf5 exf5 17. e5 Na5 {1-0 (44) Vardan,N (2366)
-Unat,C (2130) Belgrade 2021}) 12. g4 {[%emt 0:14:55]} Bg6 {[%emt 0:00:10]} 13.
Nh4 {[%emt 0:00:33]} b4 {[%emt 0:10:27]} 14. Nxg6 {[%emt 0:00:00]} hxg6 {
[%emt 0:00:14]} 15. Na4 {[%emt 0:03:02]} Qd7 {[%emt 0:08:52]} (15... bxa3 $14
16. bxa3 Rb8) 16. Qc2 {[%emt 0:05:04]} Bd6 {[%emt 0:24:22]} 17. Bd2 {[%emt 0:
03:31]} bxa3 {[%emt 0:04:31]} 18. bxa3 {[%emt 0:00:13]} Na7 {[%emt 0:03:55]}
19. Bg2 {[%emt 0:04:23]} Rab8 {[%emt 0:00:58]} (19... Qe8 $142 20. Rf1 (20.
Bxa8 Qxa8 21. e4 Nb5 $16) 20... Nd5) 20. Nc5 $18 {[%emt 0:01:09]} Qc8 {[%emt 0:
02:51]} 21. a4 {[%emt 0:08:41]} Nd5 {[%emt 0:04:49]} 22. Rab1 {[%emt 0:02:00]
Black must now prevent Rxb8.} Rb6 {[%emt 0:01:48]} 23. Rec1 {[%emt 0:04:24]}
Rd8 {[%emt 0:08:19]} 24. Bf1 {[%emt 0:02:58]} Rc6 {[%emt 0:00:00]} 25. Qb3 {
[%emt 0:05:33]} Bxc5 {[%emt 0:01:53]} (25... Rb6 $16 {was necessary.} 26. Qd3
Bxc5) 26. dxc5 {[%emt 0:00:20]} Nf6 {[%emt 0:05:19]} 27. Ba5 {[%emt 0:03:23]}
Nd5 {[%emt 0:07:37]} 28. Qb7 {[%emt 0:02:25]} Qxb7 {[%emt 0:03:38]} 29. Rxb7 {
[%emt 0:00:05]} Nc8 {[%emt 0:00:08]} 30. e4 {[%emt 0:00:00]} Nde7 {[%emt 0:00:
46]} (30... Nd6 $142) 31. Rxc7 {[%emt 0:05:09]} Rd4 {[%emt 0:00:05]} 32. Rxc6
$2 {[%emt 0:01:10]} (32. Rb7 $18 {and White stays clearly on top.}) 32... Nxc6
$16 {[%emt 0:00:05]} 33. Bxa6 {[%emt 0:00:30] aiming for Bc3.} N8e7 {[%emt 0:
00:30]} 34. Bb6 {[%emt 0:00:39]} Rxa4 {[%emt 0:00:00]} 35. Bc4 {[%emt 0:01:38]}
Ne5 {[%emt 0:00:34]} 36. Bf1 {[%emt 0:00:40]} Rxe4 {[%emt 0:01:27]} 37. Bc7 {
[%emt 0:00:08] Threatens to win with Bxe5.} N5c6 {[%emt 0:04:29]} 38. Bd6 $1 {
[%emt 0:00:49] And now Bxe7 would win.} Nd5 {[%emt 0:01:53]} 39. Ra1 {[%emt 0:
00:16]} Ndb4 {[%emt 0:01:12]} 40. Kg2 {[%emt 0:01:08]} f5 {[%emt 0:01:39]} (
40... f6 $14) 41. Ra8+ {[%emt 0:02:13]} Kh7 {[%emt 0:00:07]} 42. g5 $1 {
[%emt 0:00:45] White is more active.} Nd4 {[%emt 0:12:02] Inhibits Bb5.} 43.
Ba6 {[%emt 0:11:13]} Re1 {[%emt 0:04:33]} 44. Bb7 {[%emt 0:01:18] This bishop
pair is nice.} Rc1 {[%emt 0:09:14]} (44... Rd1 $16 {is a better defense.}) 45.
Ra4 $18 {[%emt 0:04:45]} Rb1 {[%emt 0:01:41] [#]} (45... Ndc6 $142 46. Bc8 e5)
46. Be5 $1 {[%emt 0:01:59]} Ndc2 {[%emt 0:00:00]} 47. Bc3 {[%emt 0:02:43]} ({
Worse is} 47. c6 Ne1+ 48. Kg3 Rb3+ 49. f3 Nd5 $11) 47... Nd5 {[%emt 0:03:09]}
48. Bxd5 {[%emt 0:03:59]} exd5 {[%emt 0:00:04] Endgame KRB-KRN} 49. c6 {
[%emt 0:00:07]} Ne1+ {[%emt 0:01:30]} (49... Rb6 $142 50. c7 Rc6) 50. Kf1 {
[%emt 0:01:04]} Nf3+ {[%emt 0:00:39] [#]} 51. Ke2 $1 {[%emt 0:00:51] c7 would
kill now.} Rb6 {[%emt 0:00:31]} 52. Kxf3 {[%emt 0:01:59] Threatening mate with
c7. KRB-KR} Rb3 {[%emt 0:00:10] [#]} 53. Rc4 $3 {[%emt 0:00:40]} dxc4 {[%emt 0:
00:04]} 54. c7 {[%emt 0:00:03]} Rxc3+ {[%emt 0:00:09] KR-KP} 55. Kg2 {[%emt 0:
00:15]} Rd3 {[%emt 0:01:44]} 56. c8=Q {[%emt 0:00:07] KQ-KR} Rd4 {[%emt 0:00:
11]} 57. Kg3 {[%emt 0:00:46]} (57. Qc5 $142 Re4 58. Kg3 Re2 59. Qxc4 Re1 60.
Qh4+ Kg8 61. f3 Rg1+ 62. Kh2) 57... Rd3+ {[%emt 0:00:21]} 58. f3 {[%emt 0:00:
28] White threatens h4 and mate.} Rc3 {[%emt 0:00:33]} 59. h4 {[%emt 0:00:22]
White mates.} Rc1 {[%emt 0:00:16]} 60. h5 {[%emt 0:00:24]} c3 {[%emt 0:01:14]}
61. hxg6+ {[%emt 0:00:17]} Kxg6 {[%emt 0:00:06]} 62. Qe6+ {[%emt 0:00:17]} Kh5
{[%emt 0:00:32]} 63. Qf7+ {[%emt 0:00:54]} Kxg5 {[%emt 0:00:07]} 64. Qxg7+ {
[%emt 0:00:06]} Kh5 {[%emt 0:00:00]} 65. Kf4 {[%emt 0:00:07] Weighted Error
Value: White=0.15 (very precise) /Black=0.60} 1-0